bitfinex-derivatives/quotes_ETHF0:USTF0_20250910
["timestamp","ask_amount","ask_price","bid_price","bid_amount"]
[1757540280999,0.83212,4349.6,4349.5,0.7336]
[1757540281299,1.14562,4349.6,4349.5,0.2144]
[1757540281598,0.72725,4349.2,4349.1,27.6142]
[1757540281795,0.3135,4349.2,4349.1,27.8492]
[1757540281994,0.72725,4349.3,4349.2,0.4238]
[1757540282202,0.72725,4349.3,4349.2,0.738]
[1757540284605,0.92805,4349.3,4349.2,0.738]
[1757540286605,1.14565,4349.3,4349.2,0.738]
[1757540288306,1.14565,4349.3,4349.2,0.6588]
[1757540288606,1.14565,4349.3,4349.2,0.973]
[1757540292506,0.4184,4348.9,4348.7,27.3]
[1757540292809,0.1211,4349.0,4348.5,0.738]
[1757540292810,0.7319,4348.6,4348.5,0.738]
[1757540293110,0.7319,4348.6,4348.5,0.973]
[1757540297509,0.7319,4348.6,4348.5,0.4494]
[1757540298314,0.7319,4348.6,4348.5,0.7636]
[1757540299902,0.7319,4348.6,4348.5,0.973]
[1757540301104,0.7319,4348.6,4348.5,0.6588]
[1757540301304,0.7319,4348.6,4348.5,0.4494]
[1757540302108,0.7319,4348.6,4348.5,0.7636]
[1757540302303,0.7319,4348.6,4348.3,2.04523216]
[1757540302304,0.7319,4348.4,4348.3,1.51592216]
[1757540302510,1.14574,4348.3,4348.2,1.51592216]
[1757540302804,1.14574,4348.3,4348.1,0.234]
[1757540306711,1.14578,4347.9,4347.8,0.2144]
[1757540307008,1.14578,4347.9,4347.5,0.3142]
[1757540307009,1.12341,4347.6,4347.5,0.5286]
[1757540307414,1.12341,4347.6,4347.5,0.4484]
[1757540308706,1.24426,4347.0,4346.9,2.79494593]
[1757540309013,1.24426,4347.0,4346.6,0.234]
[1757540309014,1.12219,4346.7,4346.6,0.959]
[1757540309910,1.12219,4346.7,4346.6,0.4328]
[1757540310105,1.12219,4346.7,4346.3,27.3]
[1757540310307,1.24436,4346.0,4345.9,2.79494593]
[1757540310509,1.1223,4345.6,4345.5,3.30734593]
[1757540310712,1.1223,4345.6,4345.5,0.1988]
[1757540313219,1.12232,4345.4,4345.3,0.5124]
[1757540313416,1.12232,4345.4,4345.3,0.4328]
[1757540314715,1.12232,4345.4,4345.3,0.1988]
[1757540316508,1.12232,4345.4,4345.2,0.234]
[1757540316708,0.91858,4344.7,4344.6,27.2136]
[1757540316919,0.91858,4344.7,4344.6,27.4476]
[1757540317311,1.12238,4344.7,4344.6,0.959]
[1757540317617,0.71914,4344.1,4344.0,33.55]
[1757540317815,0.71914,4344.1,4344.0,60.5646]
[1757540319318,0.71914,4344.1,4344.0,33.117]
[1757540319621,0.71914,4344.1,4344.0,33.351]
[1757540320225,0.91871,4343.4,4343.3,0.725]
[1757540320523,0.91871,4343.4,4343.3,27.86]
[1757540321117,0.91871,4343.4,4343.3,27.625]
[1757540321519,0.91871,4343.4,4343.3,27.86]
[1757540322615,1.12251,4343.4,4343.3,0.96]
[1757540323111,0.41428,4343.8,4343.7,0.4114]
[1757540323316,0.41428,4343.8,4343.7,0.96]
[1757540323915,0.91868,4343.8,4343.7,0.96]
[1757540324518,0.71913,4344.2,4344.1,0.4114]
[1757540324823,0.41422,4344.3,4344.2,0.3136]
[1757540325022,0.41421,4344.5,4344.2,0.725]
[1757540325226,0.41421,4344.5,4344.3,0.3136]
[1757540325424,0.71911,4344.5,4344.4,0.4114]
[1757540325617,0.1221,4345.0,4344.5,0.1194]
[1757540325817,0.93955,4345.0,4344.9,0.725]
[1757540326023,0.1221,4345.5,4344.9,0.4114]
[1757540326329,1.24441,4345.5,4345.4,0.725]
[1757540328623,0.5044,4346.0,4345.9,0.725]
[1757540328830,0.5044,4346.4,4346.3,0.725]
[1757540329526,0.7082,4346.4,4346.3,0.725]
[1757540330228,0.3049,4346.4,4346.3,0.725]
[1757540330621,0.5044,4346.4,4346.3,0.725]
[1757540331325,0.1221,4347.0,4346.3,0.4114]
[1757540331326,0.41398,4346.9,4346.3,0.4114]
[1757540331628,0.5044,4346.8,4346.7,0.4114]
[1757540331817,0.5044,4346.8,4346.7,0.725]
[1757540332220,0.7082,4346.8,4346.7,0.725]
[1757540335631,0.5044,4346.8,4346.7,0.725]
[1757540336430,0.7082,4346.8,4346.7,0.725]
[1757540338630,0.7082,4346.8,4346.7,0.4114]
[1757540339634,0.7082,4346.8,4346.7,0.7242]
[1757540340037,0.7082,4346.8,4346.7,0.1988]
[1757540340338,0.7082,4346.8,4346.7,0.5116]
[1757540340525,0.7332,4346.4,4346.3,0.41402]
[1757540340727,0.4194,4345.4,4345.3,0.5096]
[1757540341033,0.7332,4345.4,4345.3,0.7198]
[1757540343431,0.7332,4345.4,4345.3,0.407]
[1757540344732,0.7332,4345.4,4345.3,0.7198]
[1757540345736,0.7332,4345.4,4345.3,0.407]
[1757540346437,0.7332,4345.4,4345.3,0.9538]
[1757540350039,0.7332,4345.4,4345.3,0.641]
[1757540350240,0.7332,4345.4,4345.3,0.4308]
[1757540350941,1.14732,4345.4,4345.3,0.4308]
[1757540351634,1.14732,4345.4,4345.3,0.234]
[1757540353242,1.14732,4345.4,4345.3,0.4308]
[1757540355842,1.14732,4345.4,4345.3,0.234]
[1757540357343,0.41413,4345.2,4345.1,2.04276096]
[1757540357642,1.14733,4345.2,4345.1,2.99656096]
[1757540358345,1.14733,4345.2,4345.1,0.9538]
[1757540359144,1.14733,4345.2,4345.1,0.7198]
[1757540359347,1.14733,4345.2,4345.1,0.641]
[1757540359736,1.14733,4345.2,4345.1,0.9538]
[1757540360140,1.14733,4345.2,4344.7,2.79494593]
[1757540360141,0.41416,4344.9,4344.8,0.3128]
[1757540360342,1.14736,4344.9,4344.8,3.74874593]
[1757540360742,0.7332,4344.9,4344.8,3.74874593]
[1757540361848,0.5193,4344.9,4344.8,3.74874593]
[1757540362443,0.93346,4344.9,4344.8,3.51474593]
[1757540362643,0.93346,4344.9,4344.8,3.74874593]
[1757540363345,0.7332,4344.9,4344.8,2.79494593]
[1757540363547,0.7332,4344.9,4344.5,0.3128]
[1757540363548,0.7332,4344.6,4344.5,0.234]
[1757540363744,0.7332,4344.6,4344.5,0.4308]
[1757540363943,0.7332,4344.6,4344.5,2.48304122]
[1757540364350,0.7332,4344.6,4344.5,0.4308]
[1757540366054,0.7332,4344.6,4344.5,0.7436]
[1757540366751,0.7332,4344.6,4344.5,0.4308]
[1757540371457,0.7332,4344.6,4344.5,0.1968]
[1757540371654,0.7075,4344.3,4344.2,2.26974122]
[1757540371867,0.7075,4344.3,4344.2,2.81394122]
[1757540372058,0.7075,4344.3,4344.2,2.57994122]
[1757540372365,1.12172,4344.3,4344.2,3.03174122]
[1757540373461,1.12172,4344.3,4344.2,2.72154122]
[1757540374263,1.12172,4344.3,4344.2,0.9795]
[1757540375265,1.12172,4344.3,4344.1,2.05224122]
[1757540375569,0.7075,4344.2,4344.1,0.7455]
[1757540375766,0.7075,4344.2,4344.1,0.9795]
[1757540378772,1.12173,4344.2,4344.1,0.9795]
[1757540380168,1.12173,4344.2,4344.1,0.234]
[1757540380376,0.92087,4343.8,4343.7,2.79774122]
[1757540380671,1.12177,4343.8,4343.7,3.03174122]
[1757540381273,1.12177,4343.8,4343.7,0.9795]
[1757540382572,1.12177,4343.8,4343.7,0.6693]
[1757540382967,1.12177,4343.8,4343.7,0.9795]
[1757540383176,0.9505,4343.5,4343.4,2.26974122]
[1757540383373,1.2477,4343.5,4343.4,2.81394122]
[1757540383574,1.2477,4343.5,4343.4,0.9795]
[1757540386573,1.2477,4343.5,4343.4,0.4515]
[1757540387872,0.71152,4343.3,4343.2,33.136]
[1757540388070,0.71152,4343.3,4343.2,33.37]
[1757540388870,0.71152,4343.3,4343.2,33.6802]
[1757540389876,0.41432,4343.3,4343.2,33.6802]
[1757540394077,0.41431,4343.4,4343.3,0.7455]
[1757540396188,1.12181,4343.4,4343.3,0.7455]
[1757540396481,1.12181,4343.4,4343.3,0.9795]
[1757540398886,0.41431,4343.4,4343.3,0.9795]
[1757540400285,0.3042,4344.9,4344.8,0.207]
[1757540400581,0.3042,4345.2,4345.1,0.7294]
[1757540400785,0.54001,4345.5,4345.1,0.6548]
[1757540400983,0.3042,4345.4,4345.3,0.7294]
[1757540401284,0.7112,4345.4,4345.3,0.4208]
[1757540401881,0.7112,4345.4,4345.3,0.3488]
[1757540402686,0.82118,4344.8,4344.7,0.7294]
[1757540402986,0.82118,4344.8,4344.7,0.9634]
[1757540403180,1.12538,4344.8,4344.7,0.9634]
[1757540404084,0.9497,4344.5,4344.4,0.5224]
[1757540404291,1.2539,4344.5,4344.4,0.7564]
[1757540404583,1.2539,4344.5,4344.4,0.4478]
[1757540405296,1.1254,4344.5,4344.4,0.9634]
[1757540405598,1.2539,4344.5,4344.4,0.7294]
[1757540405799,1.2539,4344.5,4344.4,0.9634]
[1757540410494,1.2539,4344.5,4344.4,0.4478]
[1757540412187,1.2539,4344.5,4343.9,27.2086]
[1757540412188,0.3042,4344.4,4343.9,27.2086]
[1757540412389,0.92074,4344.1,4344.0,0.9634]
[1757540412690,1.12544,4344.1,4344.0,0.9634]
[1757540412890,0.61651,4344.4,4344.3,0.4208]
[1757540413089,0.92071,4344.4,4344.3,0.7294]
[1757540413289,0.92071,4344.4,4344.3,0.9634]
[1757540413597,1.12541,4344.4,4344.3,0.9634]
[1757540419700,0.7112,4344.4,4344.3,0.9634]
[1757540420698,1.12541,4344.4,4344.3,0.9634]
[1757540421493,0.7112,4344.4,4344.3,0.9634]
[1757540424595,1.12541,4344.4,4344.3,0.9634]
[1757540424900,0.92071,4344.4,4344.3,0.9634]
[1757540425102,0.5065,4344.4,4344.3,0.9634]
[1757540425397,0.3042,4344.4,4344.3,0.9634]
[1757540425601,1.12533,4345.3,4345.2,0.2138]
[1757540426103,1.35547,4345.3,4345.2,0.2138]
[1757540426301,1.12533,4345.3,4345.2,0.2138]
[1757540426601,1.35547,4345.3,4345.2,0.2138]
[1757540426796,1.12533,4345.3,4345.2,0.2138]
[1757540429597,0.41415,4345.0,4344.9,0.5426]
[1757540429796,1.15325,4345.0,4344.9,0.9477]
[1757540432498,0.3228,4345.3,4345.0,0.1252]
[1757540432691,0.95223,4345.3,4345.2,0.711]
[1757540433211,0.3228,4345.4,4345.3,0.3059]
[1757540433404,0.3228,4345.4,4345.3,0.711]
[1757540433405,0.5381,4345.4,4345.3,0.711]
[1757540433904,0.95222,4345.4,4345.3,0.711]
[1757540436304,0.5381,4345.4,4345.3,0.711]
[1757540436704,0.95222,4345.4,4345.3,0.711]
[1757540438505,1.15322,4345.4,4345.3,0.711]
[1757540439709,1.15322,4345.4,4345.3,0.234]
[1757540442511,1.15322,4345.4,4345.3,0.4403]
[1757540443409,1.15322,4345.4,4345.3,0.234]
[1757540444509,1.15322,4345.4,4345.3,0.4403]
[1757540445311,1.15322,4345.4,4345.3,0.234]
[1757540449107,0.7391,4344.9,4344.8,27.2059]
[1757540449306,1.15326,4344.9,4344.8,27.4399]
[1757540449504,1.15326,4344.9,4344.8,0.945]
[1757540461629,1.15326,4344.9,4344.8,0.234]
[1757540481350,1.15326,4344.9,4344.8,0.4503]
[1757540482252,1.15326,4344.9,4344.8,0.234]
[1757540484254,0.41418,4344.8,4344.5,3.61086772]
[1757540484458,0.7109,4344.7,4344.6,0.7772]
[1757540485658,0.7109,4344.7,4344.6,3.65227165]
[1757540486155,0.7109,4344.7,4344.6,0.7772]
[1757540486362,0.7109,4344.7,4344.6,0.4503]
[1757540487858,0.7109,4344.7,4344.6,0.2163]
[1757540488057,0.7109,4344.7,4344.6,0.4503]
[1757540490462,0.7109,4344.7,4344.6,0.234]
[1757540491152,0.7109,4344.7,4344.5,3.28927165]
[1757540491348,0.7097,4344.7,4344.6,0.234]
[1757540491553,0.7097,4344.7,4344.6,0.7464]
[1757540491755,0.7097,4344.7,4344.6,0.234]
[1757540492360,0.8517,4344.5,4344.4,3.08777165]
[1757540492566,0.8517,4344.5,4344.4,3.32177165]
[1757540493164,0.8517,4344.5,4344.4,3.10907165]
[1757540493667,1.2659,4344.5,4344.4,3.10907165]
[1757540494762,0.8517,4344.5,4344.4,3.10907165]
[1757540495668,0.8517,4344.5,4344.4,3.32177165]
[1757540496263,0.8517,4344.5,4344.4,3.62147165]
[1757540496463,0.8517,4344.5,4344.4,3.32177165]
[1757540497458,0.8517,4344.5,4344.4,3.62147165]
[1757540497866,1.2659,4344.5,4344.4,3.62147165]
[1757540498061,1.2659,4344.5,4344.4,3.08777165]
[1757540498271,1.2659,4344.5,4344.4,3.32177165]
[1757540498967,1.2659,4344.5,4344.4,0.4467]
[1757540500569,1.2659,4344.5,4344.4,0.2127]
[1757540500867,1.2659,4344.5,4344.4,0.4457]
[1757540507669,1.2659,4344.5,4344.4,0.7454]
[1757540510174,1.2659,4344.5,4344.4,0.4457]
[1757540511174,0.8517,4344.5,4344.4,0.4457]
[1757540511775,1.2659,4344.5,4344.4,0.4457]
[1757540511976,1.2659,4344.5,4344.4,0.2127]
[1757540512375,1.2659,4344.5,4344.4,0.4457]
[1757540512777,1.2659,4344.5,4344.4,0.2127]
[1757540512978,1.2659,4344.5,4344.4,0.4457]
[1757540513477,1.2659,4344.5,4344.4,0.2127]
[1757540513678,1.2659,4344.5,4344.4,0.4457]
[1757540515075,0.8517,4344.5,4344.4,0.6466]
[1757540515376,0.8517,4344.5,4344.4,0.9463]
[1757540520983,0.7272,4344.5,4344.4,0.9463]
[1757540523482,0.5115,4344.5,4344.4,0.9463]
[1757540524580,0.41418,4344.7,4344.4,0.9463]
[1757540524773,0.71178,4344.7,4344.4,0.9463]
[1757540524974,0.2976,4344.6,4344.5,0.7141]
[1757540525273,0.5157,4344.6,4344.5,0.7141]
[1757540528279,0.5157,4344.6,4344.5,0.9471]
[1757540533391,0.92989,4344.6,4344.5,0.9471]
[1757540533787,1.13899,4344.6,4344.5,0.9471]
[1757540535694,0.5157,4344.6,4344.5,1.0766]
[1757540535996,0.2976,4344.9,4344.8,0.4134]
[1757540536198,0.2976,4344.9,4344.8,0.9471]
[1757540536586,0.5157,4344.9,4344.8,0.9471]
[1757540537988,0.92986,4344.9,4344.8,0.9471]
[1757540538189,0.5157,4344.9,4344.8,0.9471]
[1757540538795,0.92986,4344.9,4344.8,0.9471]
[1757540540799,1.13896,4344.9,4344.8,0.9471]
[1757540541998,0.7248,4344.9,4344.8,0.9471]
[1757540544201,1.13896,4344.9,4344.8,0.9471]
[1757540545501,0.5157,4344.9,4344.8,0.9471]
[1757540547104,0.92986,4344.9,4344.8,0.9471]
[1757540550306,0.5157,4344.9,4344.8,0.9471]
[1757540550506,0.91956,4345.0,4344.9,0.7151]
[1757540551006,1.25066,4345.0,4344.9,0.7151]
[1757540552402,0.41409,4345.8,4345.4,0.4086]
[1757540552606,0.5054,4345.7,4345.6,0.7151]
[1757540560209,0.91949,4345.7,4345.6,0.7151]
[1757540560604,0.5054,4345.7,4345.6,0.7151]
[1757540568017,0.2984,4345.7,4345.6,0.7151]
[1757540568417,1.12019,4345.7,4345.6,0.7151]
[1757540571623,0.7061,4345.7,4345.6,0.7151]
[1757540572423,0.5054,4345.7,4345.6,0.7151]
[1757540578126,0.7061,4345.7,4345.6,0.7151]
[1757540578526,0.5054,4345.7,4345.6,0.7151]
[1757540580325,0.41407,4346.0,4345.9,0.3993]
[1757540580529,0.61127,4346.0,4345.9,0.9285]
[1757540580829,0.81837,4346.0,4345.9,0.9285]
[1757540581030,1.12167,4346.0,4345.9,0.9285]
[1757540582629,1.24847,4346.0,4345.9,0.9285]
[1757540585431,1.24847,4346.0,4345.9,0.4295]
[1757540589935,1.24847,4346.0,4345.9,0.9285]
[1757540590132,0.5005,4346.9,4346.8,0.2028]
[1757540590333,0.7076,4346.9,4346.8,0.9285]
[1757540590834,1.12157,4346.9,4346.8,0.9285]
[1757540596042,0.7076,4346.9,4346.8,0.9285]
[1757540602949,1.12157,4346.9,4346.8,0.9285]
[1757540604044,0.91447,4346.9,4346.8,0.9285]
[1757540604252,1.12157,4346.9,4346.8,0.9285]
[1757540604946,0.7076,4346.9,4346.8,0.9285]
[1757540605653,1.12157,4346.9,4346.8,0.9285]
[1757540608048,0.7076,4346.9,4346.8,0.9285]
[1757540608450,1.12157,4346.9,4346.8,0.9285]
[1757540612656,0.7076,4346.9,4346.8,0.9285]
[1757540612853,0.41396,4347.1,4347.0,0.4191]
[1757540613053,0.72766,4347.1,4347.0,0.7343]
[1757540613255,0.93496,4347.1,4347.0,0.7343]
[1757540613552,1.14136,4347.1,4347.0,0.7343]
[1757540614952,0.7274,4347.1,4347.0,0.7343]
[1757540617363,0.521,4347.1,4347.0,0.7343]
[1757540617967,0.7274,4347.1,4347.0,0.7343]
[1757540618260,0.3137,4347.4,4347.0,0.5394]
[1757540618449,1.27172,4347.5,4347.4,0.5237]
[1757540618654,1.27172,4347.5,4347.4,0.9673]
[1757540627871,0.521,4347.5,4347.4,0.9673]
[1757540630659,0.1268,4348.0,4347.4,1.19731999]
[1757540630866,1.26807,4348.0,4347.9,0.7343]
[1757540631065,1.26807,4348.0,4347.9,0.9673]
[1757540632265,0.8463,4347.5,4347.4,3.29417165]
[1757540632470,0.7274,4347.5,4347.4,3.84237165]
[1757540633363,0.1268,4348.0,4347.7,0.3152]
[1757540633568,0.8542,4348.0,4347.9,0.7343]
[1757540633865,1.26807,4348.0,4347.9,0.2085]
[1757540635070,1.26807,4348.0,4347.9,0.5237]
[1757540635271,1.26807,4348.0,4347.9,0.7343]
[1757540635569,1.14127,4348.0,4347.9,0.7343]
[1757540635973,0.7274,4348.0,4347.9,0.7343]
[1757540636373,0.521,4348.0,4347.9,0.7343]
[1757540636569,0.41384,4348.3,4347.9,0.4191]
[1757540636765,0.3137,4348.2,4348.1,0.7343]
[1757540636969,0.521,4348.2,4348.1,0.7343]
[1757540637675,0.93485,4348.2,4348.1,0.7343]
[1757540639673,1.14375,4348.2,4348.1,0.7343]
[1757540639871,1.14375,4348.2,4348.1,0.4405]
[1757540640278,0.7299,4348.2,4348.1,0.4405]
[1757540640478,0.7299,4348.2,4348.1,0.7381]
[1757540641180,0.7299,4348.2,4348.1,0.4405]
[1757540641483,0.7299,4348.2,4348.1,0.2085]
[1757540641674,0.7299,4348.2,4348.1,0.4405]
[1757540641875,0.7299,4348.2,4348.1,0.7381]
[1757540642669,1.14375,4348.2,4348.1,0.7381]
[1757540642884,0.7299,4348.2,4348.1,0.7381]
[1757540644677,1.14375,4348.2,4348.1,0.7381]
[1757540644881,0.7299,4348.2,4348.1,0.9522]
[1757540649976,0.2957,4348.9,4348.2,0.2976]
[1757540650281,0.93216,4348.9,4348.8,0.2124]
[1757540650481,0.7022,4348.9,4348.8,0.232]
[1757540650681,1.11598,4348.9,4348.8,0.232]
[1757540662281,0.2957,4348.9,4348.8,0.742]
[1757540662482,0.2957,4348.9,4348.8,0.9561]
[1757540662483,0.4933,4348.9,4348.8,0.9561]
[1757540662689,0.2957,4348.9,4348.8,0.9561]
[1757540663790,0.7022,4348.9,4348.8,0.9561]
[1757540668693,0.4933,4348.9,4348.8,0.9561]
[1757540670492,0.6956,4348.9,4348.8,0.9561]
[1757540674788,0.2957,4348.9,4348.8,0.9561]
[1757540675799,0.5071,4348.9,4348.8,0.9561]
[1757540676697,0.7094,4348.9,4348.8,2.55191897]
[1757540677000,0.7094,4348.9,4348.8,2.78391897]
[1757540678702,0.5088,4349.4,4349.3,0.7237]
[1757540678893,0.5088,4349.4,4349.3,0.9557]
[1757540680196,0.7111,4349.4,4349.3,0.9557]
[1757540682499,0.5088,4349.4,4349.3,0.9557]
[1757540686503,0.2974,4349.4,4349.3,0.9557]
[1757540686802,0.5088,4349.4,4349.3,0.9557]
[1757540687005,0.7111,4349.4,4349.3,0.9557]
[1757540693805,0.7111,4349.4,4349.3,1.36944]
[1757540698014,0.61299,4349.9,4349.8,0.203]
[1757540698206,0.82799,4349.9,4349.8,0.7312]
[1757540698612,1.13349,4349.9,4349.8,0.7312]
[1757540698808,1.13349,4349.9,4349.8,0.435]
[1757540699012,0.7198,4349.9,4349.8,0.435]
[1757540704611,1.13349,4349.9,4349.8,0.232]
[1757540708319,0.91849,4349.9,4349.8,0.232]
[1757540708514,0.7198,4349.9,4349.8,0.9398]
[1757540708716,1.13349,4349.9,4349.8,0.232]
[1757540709322,1.13349,4349.9,4349.5,0.70992]
[1757540709523,0.7198,4349.7,4349.6,0.435]
[1757540710322,0.7198,4349.7,4349.6,0.9398]
[1757540711733,0.7198,4349.7,4349.6,0.6436]
[1757540712633,0.7198,4349.7,4349.6,0.435]
[1757540713032,0.7198,4349.7,4349.6,0.7312]
[1757540714037,0.5048,4349.7,4349.6,0.9398]
[1757540714229,0.3055,4349.7,4349.6,0.9398]
[1757540716137,0.5048,4349.7,4349.6,0.9398]
[1757540719341,0.5048,4349.7,4349.6,0.7078]
[1757540722845,0.41369,4349.9,4349.6,0.4116]
[1757540723046,0.7198,4349.8,4349.7,0.4992]
[1757540723240,0.3055,4349.8,4349.7,0.7078]
[1757540723442,0.7198,4349.8,4349.7,0.9398]
[1757540723946,0.7198,4349.8,4349.7,0.7078]
[1757540724144,0.7198,4349.8,4349.7,0.6436]
[1757540724445,0.7198,4349.8,4349.7,0.9398]
[1757540730349,1.1335,4349.8,4349.7,0.9398]
[1757540731247,1.1335,4349.8,4349.7,0.6436]
[1757540732459,1.1335,4349.8,4349.7,0.435]
[1757540733144,1.1335,4349.8,4349.7,0.232]
[1757540735256,5.1335,4349.8,4349.7,0.232]
[1757540737358,1.14574,4349.3,4349.2,3.10707165]
[1757540737553,1.14574,4349.3,4349.2,2.87507165]
[1757540737755,1.14574,4349.3,4349.1,0.232]
[1757540738355,0.41376,4349.1,4349.0,2.87507165]
[1757540738562,0.72729,4348.8,4348.7,36.30347165]
[1757540739058,1.14579,4348.8,4348.7,3.19947165]
[1757540739259,1.14579,4348.8,4348.7,3.41137165]
[1757540739459,1.14579,4348.8,4348.7,0.5363]
[1757540739864,1.14579,4348.8,4348.7,0.7492]
[1757540742860,1.14579,4348.8,4348.7,0.5363]
[1757540743064,1.1458,4348.7,4348.6,0.7683]
[1757540743264,1.1458,4348.7,4348.6,0.9812]
[1757540749670,0.732,4348.7,4348.6,0.9812]
[1757540768379,0.732,4348.7,4348.6,3.85627165]
[1757540769186,0.732,4348.7,4348.6,0.9812]
[1757540770487,0.732,4348.7,4348.6,3.85627165]
[1757540774988,0.2082,4348.7,4348.6,3.85627165]
[1757540776093,0.5028,4348.7,4348.6,3.85627165]
[1757540777193,0.2082,4348.7,4348.6,3.85627165]
[1757540783695,0.2082,4348.7,4348.6,3.62427165]
[1757540783894,0.2082,4348.7,4348.6,3.85627165]
[1757540784298,0.62201,4348.7,4348.6,3.85627165]
[1757540786904,0.62201,4348.7,4348.6,0.9812]
[1757540790509,1.13161,4348.7,4348.6,0.9812]
[1757540799206,0.41384,4348.4,4348.3,2.87507165]
[1757540799510,1.13275,4348.3,4348.2,0.4295]
[1757540799810,1.13275,4348.3,4348.2,0.232]
[1757540800105,1.13278,4347.9,4347.8,0.02784]
[1757540800503,0.5336,4347.0,4346.9,2.87507165]
[1757540800810,1.25827,4347.0,4346.9,0.232]
[1757540801210,0.8222,4346.7,4346.6,0.7139]
[1757540801410,1.1329,4346.7,4346.6,0.9459]
[1757540801614,1.1329,4346.7,4346.6,0.7139]
[1757540801814,1.1329,4346.7,4346.6,0.9459]
[1757540802215,1.1329,4346.7,4346.6,0.7434]
[1757540802803,0.41405,4346.2,4346.0,0.1274]
[1757540803007,1.13295,4346.2,4346.1,0.9459]
[1757540804515,1.13295,4346.2,4346.1,0.5114]
[1757540804716,1.13295,4346.2,4346.1,0.7434]
[1757540807314,1.13295,4346.2,4346.1,0.3139]
[1757540807514,1.13298,4345.8,4345.7,0.7139]
[1757540809818,0.41412,4345.4,4345.3,0.5114]
[1757540810023,0.41412,4345.4,4345.3,0.7139]
[1757540810523,0.62342,4345.4,4345.3,0.7139]
[1757540811320,1.13302,4345.4,4345.3,0.7139]
[1757540811520,1.36242,4345.4,4345.3,0.3139]
[1757540812020,1.36242,4345.4,4345.3,0.5114]
[1757540812222,0.62349,4344.7,4344.6,0.7139]
[1757540812411,1.13309,4344.7,4344.6,0.7139]
[1757540813627,0.41419,4344.7,4344.6,0.7139]
[1757540813819,0.62349,4344.7,4344.6,0.7139]
[1757540814025,0.41419,4344.7,4344.6,0.7139]
[1757540814325,0.62349,4344.7,4344.6,0.7139]
[1757540815325,0.93419,4344.7,4344.6,0.7139]
[1757540816330,0.41419,4344.7,4344.6,0.7139]
[1757540818222,0.2294,4345.4,4344.6,4.63016999]
[1757540818519,0.2294,4345.4,4345.3,0.7178]
[1757540818826,0.41407,4346.0,4345.9,0.7178]
[1757540819029,0.41407,4346.0,4345.9,0.9498]
[1757540819530,1.14417,4346.0,4345.9,0.7178]
[1757540820926,0.41407,4346.0,4345.9,0.7178]
[1757540822831,1.14417,4346.0,4345.9,0.5098]
[1757540823126,1.27067,4346.0,4345.9,0.5098]
[1757540823334,0.63062,4345.4,4345.3,0.7178]
[1757540823526,0.63062,4345.4,4345.3,0.9498]
[1757540824633,0.41412,4345.4,4345.3,0.9498]
[1757540824834,0.94762,4345.4,4345.3,0.9498]
[1757540825128,1.14422,4345.4,4345.3,0.7178]
[1757540825428,0.41411,4345.6,4345.4,0.3094]
[1757540825736,0.41409,4345.8,4345.7,0.7178]
[1757540829439,0.41407,4346.0,4345.8,0.3094]
[1757540829629,0.41407,4346.0,4345.9,0.7178]
[1757540832128,0.317,4346.3,4345.9,0.4084]
[1757540832333,0.94751,4346.6,4346.5,0.8394]
[1757540833427,0.63051,4346.6,4346.5,0.8394]
[1757540833825,0.41397,4347.0,4346.8,0.3094]
[1757540834029,0.82703,4347.4,4347.3,0.7178]
[1757540834437,0.41392,4347.5,4347.3,0.7178]
[1757540834629,0.41392,4347.5,4347.4,0.3094]
[1757540834939,0.63042,4347.5,4347.4,0.7178]
[1757540835636,0.94742,4347.5,4347.4,0.7178]
[1757540836036,1.14402,4347.5,4347.4,0.7178]
[1757540836732,0.41391,4347.7,4347.6,0.7178]
[1757540836942,0.41389,4347.9,4347.7,0.3094]
[1757540837238,0.41389,4347.9,4347.8,0.7178]
[1757540837438,0.41388,4348.0,4347.8,0.7178]
[1757540837638,0.41388,4348.0,4347.9,0.3094]
[1757540837840,0.63038,4348.0,4347.9,0.7178]
[1757540838438,0.94738,4348.0,4347.9,0.7178]
[1757540839244,1.14398,4348.0,4347.9,0.7178]
[1757540840932,0.41389,4347.8,4347.7,0.232]
[1757540841133,0.7301,4347.2,4347.1,0.2004]
[1757540841736,0.7301,4347.2,4347.1,0.5098]
[1757540843844,0.7301,4347.2,4347.1,0.7178]
[1757540844045,1.14406,4347.1,4347.0,0.232]
[1757540844540,1.14406,4347.1,4347.0,0.7418]
[1757540845443,0.63051,4346.6,4346.5,0.8394]
[1757540845644,0.63051,4346.6,4346.5,1.0714]
[1757540846951,0.41401,4346.6,4346.5,1.0714]
[1757540848346,0.61331,4346.6,4346.5,1.0714]
[1757540848650,1.13841,4346.6,4346.5,1.0714]
[1757540849642,1.13841,4346.6,4346.5,0.7178]
[1757540849842,1.13841,4346.6,4346.5,0.9498]
[1757540850449,1.13841,4346.6,4346.5,0.7418]
[1757540850642,1.13841,4346.6,4346.5,0.5414]
[1757540850836,1.13841,4346.6,4346.5,0.232]
[1757540851851,0.5173,4345.2,4345.1,0.5262]
[1757540852036,0.5173,4345.2,4345.1,0.9687]
[1757540852243,0.7244,4345.2,4345.1,0.9687]
[1757540854049,0.1993,4345.2,4345.1,0.9687]
[1757540854650,0.5173,4345.2,4345.1,0.9687]
[1757540855754,0.7244,4345.2,4345.1,0.9687]
[1757540858955,0.41413,4345.3,4345.1,0.9687]